Workbook

Sheet Sheet2
A1: 附件1：
A2: 广州市花都区卫生系统2018年公开招聘工作人员考生综合总成绩
A3: 序号 | B3: 职位代码 | C3: 职位 | D3: 准考证号 | E3: 报考单位 | F3: 笔试或临床能力考核成绩 | G3: 换算得分 | H3: 面试成绩 | I3: 换算得分 | J3: 总成绩
A4: 1 | B4: 24494 | C4: （001）普通外科医师 | D4: 201800604214 | E4: 广州市花都区人民医院 | F4: 69.75 | G4: =ROUND(F4*0.5,2) -> 34.88 | H4: 75.25 | I4: =ROUND(H4*0.5,2) -> 37.63 | J4: =G4+I4 -> 72.51
A5: 2 | B5: 24495 | C5: （002）产科医师 | D5: 201800900116 | E5: 广州市花都区人民医院 | F5: 82.40 | G5: =ROUND(F5*0.5,2) -> 41.2 | H5: 77.65 | I5: =ROUND(H5*0.5,2) -> 38.83 | J5: =G5+I5 -> 80.03
A6: 3 | B6: 24495 | C6: （002）产科医师 | D6: 201800900109 | E6: 广州市花都区人民医院 | F6: 82.30 | G6: 41.15 | H6: 73.15 | I6: 36.58 | J6: 77.73
A7: 4 | B7: 24495 | C7: （002）产科医师 | D7: 201800900114 | E7: 广州市花都区人民医院 | F7: 79.71 | G7: 39.86 | H7: 72.65 | I7: 36.33 | J7: 76.19
A8: 5 | B8: 24495 | C8: （002）产科医师 | D8: 201800900122 | E8: 广州市花都区人民医院 | F8: 71.51 | G8: 35.76 | H8: 缺考 | I8: 0 | J8: 35.76
A9: 6 | B9: 24498 | C9: （005）药学部药师 | D9: 201800805708 | E9: 广州市花都区人民医院 | F9: 免笔试 | H9: 73.95 | J9: =H9 -> 73.95
A10: 7 | B10: 24499 | C10: （006）眼科医师 | D10: 201800604025 | E10: 广州市花都区人民医院 | F10: 70.25 | G10: 35.13 | H10: 87.55 | I10: 43.78 | J10: 78.91
A11: 8 | B11: 24499 | C11: （006）眼科医师 | D11: 201800603907 | E11: 广州市花都区人民医院 | F11: 69.75 | G11: 34.88 | H11: 79.2 | I11: 39.6 | J11: 74.48
A12: 9 | B12: 24499 | C12: （006）眼科医师 | D12: 201800603720 | E12: 广州市花都区人民医院 | F12: 71.25 | G12: 35.63 | H12: 73.2 | I12: 36.6 | J12: 72.23
A13: 10 | B13: 24500 | C13: （007）护士 | D13: 201800705310 | E13: 广州市花都区人民医院 | F13: 78.50 | G13: 39.25 | H13: 82.85 | I13: 41.43 | J13: 80.68
A14: 11 | B14: 24500 | C14: （007）护士 | D14: 201800705024 | E14: 广州市花都区人民医院 | F14: 77.50 | G14: 38.75 | H14: 81.4 | I14: 40.7 | J14: 79.45
A15: 12 | B15: 24500 | C15: （007）护士 | D15: 201800704732 | E15: 广州市花都区人民医院 | F15: 74.75 | G15: 37.38 | H15: 80.55 | I15: 40.28 | J15: 77.66
A16: 13 | B16: 24500 | C16: （007）护士 | D16: 201800704813 | E16: 广州市花都区人民医院 | F16: 77.00 | G16: 38.5 | H16: 76.35 | I16: 38.18 | J16: 76.68
A17: 14 | B17: 24500 | C17: （007）护士 | D17: 201800705335 | E17: 广州市花都区人民医院 | F17: 76.25 | G17: 38.13 | H17: 73.25 | I17: 36.63 | J17: 74.76
A18: 15 | B18: 24500 | C18: （007）护士 | D18: 201800704607 | E18: 广州市花都区人民医院 | F18: 75.75 | G18: 37.88 | H18: 72.9 | I18: 36.45 | J18: 74.33
A19: 16 | B19: 24501 | C19: （008）教学管理员 | D19: 201800201414 | E19: 广州市花都区人民医院 | F19: 70.75 | G19: 35.38 | H19: 72.3 | I19: 36.15 | J19: 71.53
A20: 17 | B20: 24502 | C20: （009）心血管内科医师 | D20: 201800805702 | E20: 广州市中西医结合医院 | F20: 免笔试 | H20: 72.1 | J20: =H20 -> 72.1
A21: 18 | B21: 24503 | C21: （010）介入治疗医师 | D21: 201800805705 | E21: 广州市中西医结合医院 | F21: 免笔试 | H21: 71.1 | J21: 71.1
A22: 19 | B22: 24504 | C22: （011）急诊外科医师 | D22: 201800603810 | E22: 广州市中西医结合医院 | F22: 75.00 | G22: 37.5 | H22: 72.5 | I22: 36.25 | J22: 73.75
A23: 20 | B23: 24505 | C23: （012）医学影像科医师 | D23: 201800900314 | E23: 广州市中西医结合医院 | F23: 86.00 | G23: 43 | H23: 79.75 | I23: 39.88 | J23: 82.88
A24: 21 | B24: 24506 | C24: （013）产科医师 | D24: 201800805710 | E24: 广州市中西医结合医院 | F24: 免笔试 | H24: 68.85 | J24: =H24 -> 68.85
A25: 22 | B25: 24508 | C25: （015）管理职员 | D25: 201800202009 | E25: 广州市中西医结合医院 | F25: 84.00 | G25: 42 | H25: 78.45 | I25: 39.23 | J25: 81.23
A26: 23 | B26: 24508 | C26: （015）管理职员 | D26: 201800201933 | E26: 广州市中西医结合医院 | F26: 73.25 | G26: 36.63 | H26: 77.3 | I26: 38.65 | J26: 75.28
A27: 24 | B27: 24509 | C27: （016）审计科科员 | D27: 201800201522 | E27: 广州市中西医结合医院 | F27: 78.75 | G27: 39.38 | H27: 78.3 | I27: 39.15 | J27: 78.53
A28: 25 | B28: 24509 | C28: （016）审计科科员 | D28: 201800201237 | E28: 广州市中西医结合医院 | F28: 62.75 | G28: 31.38 | H28: 79.6 | I28: 39.8 | J28: 71.18
A29: 26 | B29: 24512 | C29: （019）内科医师 | D29: 201800503631 | E29: 广州市花都区妇幼保健院（胡忠医院） | F29: 73.25 | G29: 36.63 | H29: 80.35 | I29: 40.18 | J29: 76.81
A30: 27 | B30: 24513 | C30: （020）内科医师 | D30: 201800604221 | E30: 广州市花都区妇幼保健院（胡忠医院） | F30: 74.00 | G30: 37 | H30: 80.95 | I30: 40.48 | J30: 77.48
A31: 28 | B31: 24514 | C31: （021）外科医师 | D31: 201800805711 | E31: 广州市花都区妇幼保健院（胡忠医院） | F31: 免笔试 | H31: 79.6 | J31: =H31 -> 79.6
A32: 29 | B32: 24515 | C32: （022）外科医师 | D32: 201800603930 | E32: 广州市花都区妇幼保健院（胡忠医院） | F32: 77.50 | G32: 38.75 | H32: 77.95 | I32: 38.98 | J32: 77.73
A33: 30 | B33: 24515 | C33: （022）外科医师 | D33: 201800603828 | E33: 广州市花都区妇幼保健院（胡忠医院） | F33: 73.00 | G33: 36.5 | H33: 74.3 | I33: 37.15 | J33: 73.65
A34: 31 | B34: 24515 | C34: （022）外科医师 | D34: 201800604113 | E34: 广州市花都区妇幼保健院（胡忠医院） | F34: 74.00 | G34: =ROUND(F34*0.5,2) -> 37 | H34: 71.6 | I34: =ROUND(H34*0.5,2) -> 35.8 | J34: =G34+I34 -> 72.8
A35: 32 | B35: 24516 | C35: （023）B超医师 | D35: 201800900324 | E35: 广州市花都区妇幼保健院（胡忠医院） | F35: 77.00 | G35: 38.5 | H35: 73.1 | I35: 36.55 | J35: 75.05
A36: 33 | B36: 24516 | C36: （023）B超医师 | D36: 201800900333 | E36: 广州市花都区妇幼保健院（胡忠医院） | F36: 67.30 | G36: 33.65 | H36: 64.2 | I36: 32.1 | J36: 65.75
A37: 34 | B37: 24517 | C37: （024）口腔医师 | D37: 201800603801 | E37: 广州市花都区妇幼保健院（胡忠医院） | F37: 69.50 | G37: =ROUND(F37*0.5,2) -> 34.75 | H37: 81.5 | I37: =ROUND(H37*0.5,2) -> 40.75 | J37: =G37+I37 -> 75.5
A38: 35 | B38: 24517 | C38: （024）口腔医师 | D38: 201800603704 | E38: 广州市花都区妇幼保健院（胡忠医院） | F38: 70.00 | G38: 35 | H38: 72.1 | I38: 36.05 | J38: 71.05
A39: 36 | B39: 24517 | C39: （024）口腔医师 | D39: 201800604022 | E39: 广州市花都区妇幼保健院（胡忠医院） | F39: 67.50 | G39: 33.75 | H39: 72.15 | I39: 36.08 | J39: 69.83
A40: 37 | B40: 24518 | C40: （025）麻醉医师 | D40: 201800900113 | E40: 广州市花都区妇幼保健院（胡忠医院） | F40: 93.23 | G40: 46.62 | H40: 72.6 | I40: 36.3 | J40: 82.92
A41: 38 | B41: 24518 | C41: （025）麻醉医师 | D41: 201800900119 | E41: 广州市花都区妇幼保健院（胡忠医院） | F41: 95.07 | G41: 47.54 | H41: 67.15 | I41: 33.58 | J41: 81.12
A42: 39 | B42: 24518 | C42: （025）麻醉医师 | D42: 201800900117 | E42: 广州市花都区妇幼保健院（胡忠医院） | F42: 94.5 | G42: 47.25 | H42: 66.65 | I42: 33.33 | J42: 80.58
A43: 40 | B43: 24519 | C43: （026）儿科医师 | D43: 201800900205 | E43: 广州市花都区妇幼保健院（胡忠医院） | F43: 94.09 | G43: 47.05 | H43: 73.6 | I43: 36.8 | J43: 83.85
A44: 41 | B44: 24519 | C44: （026）儿科医师 | D44: 201800900204 | E44: 广州市花都区妇幼保健院（胡忠医院） | F44: 90.84 | G44: 45.42 | H44: 74.7 | I44: 37.35 | J44: 82.77
A45: 42 | B45: 24520 | C45: （027）产科医师 | D45: 201800900107 | E45: 广州市花都区妇幼保健院（胡忠医院） | F45: 82.34 | G45: 41.17 | H45: 68.2 | I45: 34.1 | J45: 75.27
A46: 43 | B46: 24520 | C46: （027）产科医师 | D46: 201800900111 | E46: 广州市花都区妇幼保健院（胡忠医院） | F46: 74.79 | G46: 37.4 | H46: 70.2 | I46: 35.1 | J46: 72.5
A47: 44 | B47: 24520 | C47: （027）产科医师 | D47: 201800900105 | E47: 广州市花都区妇幼保健院（胡忠医院） | F47: 74.65 | G47: 37.33 | H47: 67.3 | I47: 33.65 | J47: 70.98
A48: 45 | B48: 24521 | C48: （028）护师 | D48: 201800704808 | E48: 广州市花都区妇幼保健院（胡忠医院） | F48: 73.25 | G48: =ROUND(F48*0.5,2) -> 36.63 | H48: 88.4 | I48: =ROUND(H48*0.5,2) -> 44.2 | J48: =G48+I48 -> 80.83
A49: 46 | B49: 24521 | C49: （028）护师 | D49: 201800705240 | E49: 广州市花都区妇幼保健院（胡忠医院） | F49: 77.25 | G49: 38.63 | H49: 77.7 | I49: 38.85 | J49: 77.48
A50: 47 | B50: 24521 | C50: （028）护师 | D50: 201800705131 | E50: 广州市花都区妇幼保健院（胡忠医院） | F50: 77.75 | G50: =ROUND(F50*0.5,2) -> 38.88 | H50: 76.15 | I50: =ROUND(H50*0.5,2) -> 38.08 | J50: =G50+I50 -> 76.96
A51: 48 | B51: 24522 | C51: （029）助产士 | D51: 201800704624 | E51: 广州市花都区妇幼保健院（胡忠医院） | F51: 76.00 | G51: 38 | H51: 83.95 | I51: 41.98 | J51: 79.98
A52: 49 | B52: 24522 | C52: （029）助产士 | D52: 201800705225 | E52: 广州市花都区妇幼保健院（胡忠医院） | F52: 70.50 | G52: 35.25 | H52: 82.3 | I52: 41.15 | J52: 76.4
A53: 50 | B53: 24522 | C53: （029）助产士 | D53: 201800704334 | E53: 广州市花都区妇幼保健院（胡忠医院） | F53: 68.25 | G53: 34.13 | H53: 74.65 | I53: 37.33 | J53: 71.46
A54: 51 | B54: 24523 | C54: （030）护士 | D54: 201800704535 | E54: 花都区第二人民医院 | F54: 68.00 | G54: =ROUND(F54*0.5,2) -> 34 | H54: 76.45 | I54: =ROUND(H54*0.5,2) -> 38.23 | J54: =G54+I54 -> 72.23
A55: 52 | B55: 24523 | C55: （030）护士 | D55: 201800705128 | E55: 花都区第二人民医院 | F55: 70.00 | G55: 35 | H55: 70.75 | I55: 35.38 | J55: 70.38
A56: 53 | B56: 24523 | C56: （030）护士 | D56: 201800705607 | E56: 花都区第二人民医院 | F56: 63.50 | G56: 31.75 | H56: 72.8 | I56: 36.4 | J56: 68.15
A57: 54 | B57: 24523 | C57: （030）护士 | D57: 201800705035 | E57: 花都区第二人民医院 | F57: 60.25 | G57: 30.13 | H57: 65.05 | I57: 32.53 | J57: 62.66
A58: 55 | B58: 24524 | C58: （031）影像诊断医师 | D58: 201800900321 | E58: 花都区第二人民医院 | F58: 75.00 | G58: 37.5 | H58: 73.2 | I58: 36.6 | J58: 74.1
A59: 56 | B59: 24527 | C59: （034）骨科医师 | D59: 201800604104 | E59: 花都区第二人民医院 | F59: 76.25 | G59: =ROUND(F59*0.5,2) -> 38.13 | H59: 77.05 | I59: =ROUND(H59*0.5,2) -> 38.53 | J59: =G59+I59 -> 76.66
A60: 57 | B60: 24527 | C60: （034）骨科医师 | D60: 201800603706 | E60: 花都区第二人民医院 | F60: 79.25 | G60: 39.63 | H60: 73.45 | I60: 36.73 | J60: 76.36
A61: 58 | B61: 24529 | C61: （036）脊柱科医师 | D61: 201800603707 | E61: 花都区第二人民医院 | F61: 80.75 | G61: 40.38 | H61: 78.9 | I61: 39.45 | J61: 79.83
A62: 59 | B62: 24529 | C62: （036）脊柱科医师 | D62: 201800604132 | E62: 花都区第二人民医院 | F62: 73.75 | G62: 36.88 | H62: 缺考 | I62: 0 | J62: 36.88
A63: 60 | B63: 24531 | C63: （038）口腔科医师 | D63: 201800603818 | E63: 花都区第二人民医院 | F63: 63.00 | G63: 31.5 | H63: 80.5 | I63: 40.25 | J63: 71.75
A64: 61 | B64: 24533 | C64: （040）呼吸内科医师 | D64: 201800503436 | E64: 花都区第二人民医院 | F64: 75.00 | G64: 37.5 | H64: 84.55 | I64: 42.28 | J64: 79.78
A65: 62 | B65: 24533 | C65: （040）呼吸内科医师 | D65: 201800503205 | E65: 花都区第二人民医院 | F65: 73.75 | G65: 36.88 | H65: 78.25 | I65: 39.13 | J65: 76.01
A66: 63 | B66: 24534 | C66: （041）心血管内科医师 | D66: 201800503334 | E66: 花都区第二人民医院 | F66: 75.00 | G66: 37.5 | H66: 83.95 | I66: 41.98 | J66: 79.48
A67: 64 | B67: 24535 | C67: （042）人力资源干事 | D67: 201800201122 | E67: 花都区第二人民医院 | F67: 77.50 | G67: 38.75 | H67: 84.4 | I67: 42.2 | J67: 80.95
A68: 65 | B68: 24535 | C68: （042）人力资源干事 | D68: 201800200618 | E68: 花都区第二人民医院 | F68: 83.75 | G68: 41.88 | H68: 76.6 | I68: 38.3 | J68: 80.18
A69: 66 | B69: 24535 | C69: （042）人力资源干事 | D69: 201800201516 | E69: 花都区第二人民医院 | F69: 79.25 | G69: =ROUND(F69*0.5,2) -> 39.63 | H69: 79.9 | I69: =ROUND(H69*0.5,2) -> 39.95 | J69: =G69+I69 -> 79.58
A70: 67 | B70: 24536 | C70: （043）B超医师 | D70: 201800900330 | E70: 花都区第二人民医院 | F70: 75.30 | G70: 37.65 | H70: 73.1 | I70: 36.55 | J70: 74.2
A71: 68 | B71: 24537 | C71: （044）信息干事 | D71: 201800201822 | E71: 花都区第二人民医院 | F71: 71.00 | G71: 35.5 | H71: 74.2 | I71: 37.1 | J71: 72.6
A72: 69 | B72: 24539 | C72: （046）设备维修人员 | D72: 201800201015 | E72: 花都区第二人民医院 | F72: 75.25 | G72: 37.63 | H72: 80.3 | I72: 40.15 | J72: 77.78
A73: 70 | B73: 24539 | C73: （046）设备维修人员 | D73: 201800200915 | E73: 花都区第二人民医院 | F73: 77.50 | G73: 38.75 | H73: 76.45 | I73: 38.23 | J73: 76.98
A74: 71 | B74: 24539 | C74: （046）设备维修人员 | D74: 201800201511 | E74: 花都区第二人民医院 | F74: 73.25 | G74: 36.63 | H74: 72.6 | I74: 36.3 | J74: 72.93
A75: 72 | B75: 24540 | C75: （016）CT技师 | D75: 201800900319 | E75: 广州市花都区卫计局 | F75: 83.40 | G75: =ROUND(F75*0.5,2) -> 41.70 | H75: 77.40 | I75: =ROUND(H75*0.5,2) -> 38.70 | J75: =G75+I75 -> 80.40
A76: 73 | B76: 24543 | C76: （050）中药师 | D76: 201800302139 | E76: 广州市花都区卫计局 | F76: 77.25 | G76: 38.63 | H76: 79.65 | I76: 39.83 | J76: 78.46
A77: 74 | B77: 24543 | C77: （050）中药师 | D77: 201800302305 | E77: 广州市花都区卫计局 | F77: 75.25 | G77: 37.63 | H77: 73.60 | I77: 36.80 | J77: 74.43
A78: 75 | B78: 24543 | C78: （050）中药师 | D78: 201800302225 | E78: 广州市花都区卫计局 | F78: 76.00 | G78: 38.00 | H78: 67.60 | I78: 33.80 | J78: 71.80
A79: 76 | B79: 24544 | C79: （051、074、096、123、131）公卫医师 | D79: 201800402617 | E79: 广州市花都区卫计局 | F79: 82.25 | G79: 41.13 | H79: 83.40 | I79: 41.70 | J79: 82.83
A80: 77 | B80: 24544 | C80: （051、074、096、123、131）公卫医师 | D80: 201800402503 | E80: 广州市花都区卫计局 | F80: 75.25 | G80: 37.63 | H80: 84.25 | I80: 42.13 | J80: 79.76
A81: 78 | B81: 24544 | C81: （051、074、096、123、131）公卫医师 | D81: 201800402822 | E81: 广州市花都区卫计局 | F81: 76.00 | G81: 38.00 | H81: 83.10 | I81: 41.55 | J81: 79.55
A82: 79 | B82: 24544 | C82: （051、074、096、123、131）公卫医师 | D82: 201800403031 | E82: 广州市花都区卫计局 | F82: 75.00 | G82: 37.50 | H82: 82.50 | I82: 41.25 | J82: 78.75
A83: 80 | B83: 24544 | C83: （051、074、096、123、131）公卫医师 | D83: 201800403121 | E83: 广州市花都区卫计局 | F83: 77.75 | G83: 38.88 | H83: 77.70 | I83: 38.85 | J83: 77.73
A84: 81 | B84: 24544 | C84: （051、074、096、123、131）公卫医师 | D84: 201800402732 | E84: 广州市花都区卫计局 | F84: 73.75 | G84: 36.88 | H84: 81.05 | I84: 40.53 | J84: 77.41
A85: 82 | B85: 24544 | C85: （051、074、096、123、131）公卫医师 | D85: 201800403005 | E85: 广州市花都区卫计局 | F85: 73.75 | G85: 36.88 | H85: 80.80 | I85: 40.40 | J85: 77.28
A86: 83 | B86: 24544 | C86: （051、074、096、123、131）公卫医师 | D86: 201800402913 | E86: 广州市花都区卫计局 | F86: 74.75 | G86: 37.38 | H86: 79.45 | I86: 39.73 | J86: 77.11
A87: 84 | B87: 24544 | C87: （051、074、096、123、131）公卫医师 | D87: 201800402811 | E87: 广州市花都区卫计局 | F87: 74.75 | G87: 37.38 | H87: 79.40 | I87: 39.70 | J87: 77.08
A88: 85 | B88: 24544 | C88: （051、074、096、123、131）公卫医师 | D88: 201800402415 | E88: 广州市花都区卫计局 | F88: 72.50 | G88: 36.25 | H88: 81.35 | I88: 40.68 | J88: 76.93
A89: 86 | B89: 24544 | C89: （051、074、096、123、131）公卫医师 | D89: 201800402629 | E89: 广州市花都区卫计局 | F89: 70.50 | G89: 35.25 | H89: 82.25 | I89: 41.13 | J89: 76.38
A90: 87 | B90: 24544 | C90: （051、074、096、123、131）公卫医师 | D90: 201800402922 | E90: 广州市花都区卫计局 | F90: 68.25 | G90: 34.13 | H90: 83.85 | I90: 41.93 | J90: 76.06
A91: 88 | B91: 24544 | C91: （051、074、096、123、131）公卫医师 | D91: 201800402902 | E91: 广州市花都区卫计局 | F91: 72.00 | G91: 36.00 | H91: 79.05 | I91: 39.53 | J91: 75.53
A92: 89 | B92: 24544 | C92: （051、074、096、123、131）公卫医师 | D92: 201800402626 | E92: 广州市花都区卫计局 | F92: 72.50 | G92: 36.25 | H92: 78.10 | I92: 39.05 | J92: 75.30
A93: 90 | B93: 24544 | C93: （051、074、096、123、131）公卫医师 | D93: 201800402516 | E93: 广州市花都区卫计局 | F93: 74.25 | G93: 37.13 | H93: 76.30 | I93: 38.15 | J93: 75.28
A94: 91 | B94: 24544 | C94: （051、074、096、123、131）公卫医师 | D94: 201800402510 | E94: 广州市花都区卫计局 | F94: 73.50 | G94: 36.75 | H94: 76.30 | I94: 38.15 | J94: 74.90
A95: 92 | B95: 24544 | C95: （051、074、096、123、131）公卫医师 | D95: 201800402434 | E95: 广州市花都区卫计局 | F95: 73.50 | G95: 36.75 | H95: 75.10 | I95: =ROUND(H95*0.5,2) -> 37.55 | J95: 74.30
A96: 93 | B96: 24544 | C96: （051、074、096、123、131）公卫医师 | D96: 201800403008 | E96: 广州市花都区卫计局 | F96: 70.50 | G96: =ROUND(F96*0.5,2) -> 35.25 | H96: 76.40 | I96: 38.20 | J96: 73.45
A97: 94 | B97: 24544 | C97: （051、074、096、123、131）公卫医师 | D97: 201800402504 | E97: 广州市花都区卫计局 | F97: 70.75 | G97: 35.38 | H97: 76.00 | I97: 38.00 | J97: 73.38
A98: 95 | B98: 24544 | C98: （051、074、096、123、131）公卫医师 | D98: 201800403109 | E98: 广州市花都区卫计局 | F98: 68.25 | G98: 34.13 | H98: 77.20 | I98: 38.60 | J98: 72.73
A99: 96 | B99: 24544 | C99: （051、074、096、123、131）公卫医师 | D99: 201800402512 | E99: 广州市花都区卫计局 | F99: 70.75 | G99: 35.38 | H99: 73.80 | I99: 36.90 | J99: 72.28
A100: 97 | B100: 24544 | C100: （051、074、096、123、131）公卫医师 | D100: 201800403105 | E100: 广州市花都区卫计局 | F100: 73.00 | G100: 36.50 | H100: 71.50 | I100: 35.75 | J100: 72.25
A101: 98 | B101: 24544 | C101: （051、074、096、123、131）公卫医师 | D101: 201800402927 | E101: 广州市花都区卫计局 | F101: 69.50 | G101: 34.75 | H101: 73.60 | I101: 36.80 | J101: 71.55
A102: 99 | B102: 24544 | C102: （051、074、096、123、131）公卫医师 | D102: 201800402411 | E102: 广州市花都区卫计局 | F102: 70.25 | G102: 35.13 | H102: 72.65 | I102: 36.33 | J102: 71.46
A103: 100 | B103: 24544 | C103: （051、074、096、123、131）公卫医师 | D103: 201800402710 | E103: 广州市花都区卫计局 | F103: 69.75 | G103: 34.88 | H103: 72.15 | I103: 36.08 | J103: 70.96
A104: 101 | B104: 24544 | C104: （051、074、096、123、131）公卫医师 | D104: 201800402514 | E104: 广州市花都区卫计局 | F104: 70.75 | G104: 35.38 | H104: 70.95 | I104: 35.48 | J104: 70.86
A105: 102 | B105: 24544 | C105: （051、074、096、123、131）公卫医师 | D105: 201800402513 | E105: 广州市花都区卫计局 | F105: 68.75 | G105: 34.38 | H105: 72.65 | I105: 36.33 | J105: 70.71
A106: 103 | B106: 24544 | C106: （051、074、096、123、131）公卫医师 | D106: 201800403014 | E106: 广州市花都区卫计局 | F106: 69.25 | G106: 34.63 | H106: 72.05 | I106: 36.03 | J106: 70.66
A107: 104 | B107: 24544 | C107: （051、074、096、123、131）公卫医师 | D107: 201800402627 | E107: 广州市花都区卫计局 | F107: 68.25 | G107: 34.13 | H107: 72.45 | I107: 36.23 | J107: 70.36
A108: 105 | B108: 24544 | C108: （051、074、096、123、131）公卫医师 | D108: 201800402929 | E108: 广州市花都区卫计局 | F108: 68.25 | G108: 34.13 | H108: 72.40 | I108: 36.20 | J108: 70.33
A109: 106 | B109: 24544 | C109: （051、074、096、123、131）公卫医师 | D109: 201800402508 | E109: 广州市花都区卫计局 | F109: 69.50 | G109: 34.75 | H109: 70.80 | I109: 35.40 | J109: 70.15
A110: 107 | B110: 24544 | C110: （051、074、096、123、131）公卫医师 | D110: 201800402719 | E110: 广州市花都区卫计局 | F110: 69.50 | G110: 34.75 | H110: 69.95 | I110: 34.98 | J110: 69.73
A111: 108 | B111: 24544 | C111: （051、074、096、123、131）公卫医师 | D111: 201800402905 | E111: 广州市花都区卫计局 | F111: 68.50 | G111: 34.25 | H111: 69.30 | I111: 34.65 | J111: 68.90
A112: 109 | B112: 24544 | C112: （051、074、096、123、131）公卫医师 | D112: 201800402532 | E112: 广州市花都区卫计局 | F112: 68.75 | G112: 34.38 | H112: 67.65 | I112: 33.83 | J112: 68.21
A113: 110 | B113: 24544 | C113: （051、074、096、123、131）公卫医师 | D113: 201800403106 | E113: 广州市花都区卫计局 | F113: 78.00 | G113: 39.00 | H113: 缺考 | I113: 0.00 | J113: 39.00
A114: 111 | B114: 24544 | C114: （051、074、096、123、131）公卫医师 | D114: 201800402704 | E114: 广州市花都区卫计局 | F114: 74.00 | G114: 37.00 | H114: 缺考 | I114: 0.00 | J114: 37.00
A115: 112 | B115: 24544 | C115: （051、074、096、123、131）公卫医师 | D115: 201800402605 | E115: 广州市花都区卫计局 | F115: 73.50 | G115: 36.75 | H115: 缺考 | I115: 0.00 | J115: 36.75
A116: 113 | B116: 24544 | C116: （051、074、096、123、131）公卫医师 | D116: 201800402805 | E116: 广州市花都区卫计局 | F116: 73.50 | G116: 36.75 | H116: 缺考 | I116: 0.00 | J116: 36.75
A117: 114 | B117: 24544 | C117: （051、074、096、123、131）公卫医师 | D117: 201800403033 | E117: 广州市花都区卫计局 | F117: 73.25 | G117: 36.63 | H117: 缺考 | I117: 0.00 | J117: 36.63
A118: 115 | B118: 24544 | C118: （051、074、096、123、131）公卫医师 | D118: 201800402531 | E118: 广州市花都区卫计局 | F118: 71.00 | G118: 35.50 | H118: 缺考 | I118: 0.00 | J118: 35.50
A119: 116 | B119: 24544 | C119: （051、074、096、123、131）公卫医师 | D119: 201800402419 | E119: 广州市花都区卫计局 | F119: 70.75 | G119: 35.38 | H119: 缺考 | I119: 0.00 | J119: 35.38
A120: 117 | B120: 24544 | C120: （051、074、096、123、131）公卫医师 | D120: 201800402501 | E120: 广州市花都区卫计局 | F120: 69.50 | G120: 34.75 | H120: 缺考 | I120: 0.00 | J120: 34.75
A121: 118 | B121: 24545 | C121: （052）康复理疗师 | D121: 201800503401 | E121: 广州市花都区卫计局 | F121: 75.25 | G121: 37.63 | H121: 81.20 | I121: =ROUND(H121*0.5,2) -> 40.60 | J121: 78.23
A122: 119 | B122: 24545 | C122: （052）康复理疗师 | D122: 201800503608 | E122: 广州市花都区卫计局 | F122: 69.50 | G122: =ROUND(F122*0.5,2) -> 34.75 | H122: 82.65 | I122: =ROUND(H122*0.5,2) -> 41.33 | J122: =G122+I122 -> 76.08
A123: 120 | B123: 24545 | C123: （052）康复理疗师 | D123: 201800503612 | E123: 广州市花都区卫计局 | F123: 71.50 | G123: 35.75 | H123: 缺考 | I123: 0.00 | J123: 35.75
A124: 121 | B124: 24546 | C124: （053、077、105）护士 | D124: 201800704929 | E124: 广州市花都区卫计局 | F124: 76.75 | G124: 38.38 | H124: 79.30 | I124: 39.65 | J124: 78.03
A125: 122 | B125: 24546 | C125: （053、077、105）护士 | D125: 201800704519 | E125: 广州市花都区卫计局 | F125: 62.75 | G125: 31.38 | H125: 70.50 | I125: 35.25 | J125: 66.63
A126: 123 | B126: 24546 | C126: （053、077、105）护士 | D126: 201800705410 | E126: 广州市花都区卫计局 | F126: 63.50 | G126: 31.75 | H126: 69.10 | I126: 34.55 | J126: 66.30
A127: 124 | B127: 24546 | C127: （053、077、105）护士 | D127: 201800704524 | E127: 广州市花都区卫计局 | F127: 63.75 | G127: 31.88 | H127: 68.65 | I127: 34.33 | J127: 66.21
A128: 125 | B128: 24547 | C128: （054）临床医师 | D128: 201800603733 | E128: 广州市花都区卫计局 | F128: 77.50 | G128: 38.75 | H128: 77.25 | I128: 38.63 | J128: 77.38
A129: 126 | B129: 24547 | C129: （054）临床医师 | D129: 201800604120 | E129: 广州市花都区卫计局 | F129: 71.25 | G129: 35.63 | H129: 71.00 | I129: 35.50 | J129: 71.13
A130: 127 | B130: 24547 | C130: （054）临床医师 | D130: 201800603914 | E130: 广州市花都区卫计局 | F130: 66.00 | G130: 33.00 | H130: 73.80 | I130: 36.90 | J130: 69.90
A131: 128 | B131: 24547 | C131: （054）临床医师 | D131: 201800603814 | E131: 广州市花都区卫计局 | F131: 65.50 | G131: 32.75 | H131: 73.95 | I131: 36.98 | J131: 69.73
A132: 129 | B132: 24548 | C132: （055、127）中医师 | D132: 201800503516 | E132: 广州市花都区卫计局 | F132: 78.75 | G132: 39.38 | H132: 84.50 | I132: 42.25 | J132: =G132+I132 -> 81.63
A133: 130 | B133: 24548 | C133: （055、127）中医师 | D133: 201800503304 | E133: 广州市花都区卫计局 | F133: 81.50 | G133: 40.75 | H133: 81.40 | I133: 40.70 | J133: 81.45
A134: 131 | B134: 24548 | C134: （055、127）中医师 | D134: 201800503310 | E134: 广州市花都区卫计局 | F134: 79.00 | G134: 39.50 | H134: 80.20 | I134: 40.10 | J134: 79.60
A135: 132 | B135: 24548 | C135: （055、127）中医师 | D135: 201800503237 | E135: 广州市花都区卫计局 | F135: 74.00 | G135: 37.00 | H135: 85.20 | I135: 42.60 | J135: 79.60
A136: 133 | B136: 24548 | C136: （055、127）中医师 | D136: 201800503227 | E136: 广州市花都区卫计局 | F136: 75.50 | G136: 37.75 | H136: 83.20 | I136: 41.60 | J136: 79.35
A137: 134 | B137: 24548 | C137: （055、127）中医师 | D137: 201800503239 | E137: 广州市花都区卫计局 | F137: 78.00 | G137: 39.00 | H137: 77.70 | I137: 38.85 | J137: 77.85
A138: 135 | B138: 24548 | C138: （055、127）中医师 | D138: 201800503331 | E138: 广州市花都区卫计局 | F138: 74.50 | G138: 37.25 | H138: 79.50 | I138: 39.75 | J138: 77.00
A139: 136 | B139: 24548 | C139: （055、127）中医师 | D139: 201800503539 | E139: 广州市花都区卫计局 | F139: 74.50 | G139: 37.25 | H139: 79.35 | I139: 39.68 | J139: 76.93
A140: 137 | B140: 24548 | C140: （055、127）中医师 | D140: 201800503204 | E140: 广州市花都区卫计局 | F140: 71.50 | G140: 35.75 | H140: 77.80 | I140: 38.90 | J140: 74.65
A141: 138 | B141: 24548 | C141: （055、127）中医师 | D141: 201800503428 | E141: 广州市花都区卫计局 | F141: 72.50 | G141: 36.25 | H141: 73.85 | I141: 36.93 | J141: 73.18
A142: 139 | B142: 24548 | C142: （055、127）中医师 | D142: 201800503514 | E142: 广州市花都区卫计局 | F142: 73.50 | G142: 36.75 | H142: 72.50 | I142: 36.25 | J142: 73.00
A143: 140 | B143: 24548 | C143: （055、127）中医师 | D143: 201800503403 | E143: 广州市花都区卫计局 | F143: 74.25 | G143: =ROUND(F143*0.5,2) -> 37.13 | H143: 71.25 | I143: =ROUND(H143*0.5,2) -> 35.63 | J143: =G143+I143 -> 72.76
A144: 141 | B144: 24548 | C144: （055、127）中医师 | D144: 201800503622 | E144: 广州市花都区卫计局 | F144: 71.25 | G144: =ROUND(F144*0.5,2) -> 35.63 | H144: 70.20 | I144: =ROUND(H144*0.5,2) -> 35.10 | J144: =G144+I144 -> 70.73
A145: 142 | B145: 24550 | C145: （057、058、071、075）临床医师 | D145: 201800604110 | E145: 广州市花都区卫计局 | F145: 76.75 | G145: 38.38 | H145: 79.90 | I145: 39.95 | J145: 78.33
A146: 143 | B146: 24550 | C146: （057、058、071、075）临床医师 | D146: 201800604112 | E146: 广州市花都区卫计局 | F146: 73.25 | G146: 36.63 | H146: 80.90 | I146: 40.45 | J146: 77.08
A147: 144 | B147: 24550 | C147: （057、058、071、075）临床医师 | D147: 201800604030 | E147: 广州市花都区卫计局 | F147: 74.00 | G147: 37.00 | H147: 79.50 | I147: 39.75 | J147: 76.75
A148: 145 | B148: 24550 | C148: （057、058、071、075）临床医师 | D148: 201800604014 | E148: 广州市花都区卫计局 | F148: 74.25 | G148: 37.13 | H148: 78.10 | I148: 39.05 | J148: 76.18
A149: 146 | B149: 24550 | C149: （057、058、071、075）临床医师 | D149: 201800603902 | E149: 广州市花都区卫计局 | F149: 69.25 | G149: 34.63 | H149: 82.10 | I149: 41.05 | J149: 75.68
A150: 147 | B150: 24550 | C150: （057、058、071、075）临床医师 | D150: 201800603807 | E150: 广州市花都区卫计局 | F150: 67.75 | G150: 33.88 | H150: 83.55 | I150: 41.78 | J150: 75.66
A151: 148 | B151: 24550 | C151: （057、058、071、075）临床医师 | D151: 201800604205 | E151: 广州市花都区卫计局 | F151: 68.25 | G151: 34.13 | H151: 82.85 | I151: 41.43 | J151: 75.56
A152: 149 | B152: 24550 | C152: （057、058、071、075）临床医师 | D152: 201800604029 | E152: 广州市花都区卫计局 | F152: 74.75 | G152: 37.38 | H152: 74.35 | I152: 37.18 | J152: 74.56
A153: 150 | B153: 24550 | C153: （057、058、071、075）临床医师 | D153: 201800604230 | E153: 广州市花都区卫计局 | F153: 69.50 | G153: 34.75 | H153: 78.40 | I153: 39.20 | J153: 73.95
A154: 151 | B154: 24550 | C154: （057、058、071、075）临床医师 | D154: 201800603823 | E154: 广州市花都区卫计局 | F154: 70.00 | G154: 35.00 | H154: 77.85 | I154: 38.93 | J154: 73.93
A155: 152 | B155: 24550 | C155: （057、058、071、075）临床医师 | D155: 201800604028 | E155: 广州市花都区卫计局 | F155: 69.25 | G155: 34.63 | H155: 77.75 | I155: =ROUND(H155*0.5,2) -> 38.88 | J155: 73.51
A156: 153 | B156: 24550 | C156: （057、058、071、075）临床医师 | D156: 201800603833 | E156: 广州市花都区卫计局 | F156: 65.75 | G156: 32.88 | H156: 81.10 | I156: 40.55 | J156: 73.43
A157: 154 | B157: 24550 | C157: （057、058、071、075）临床医师 | D157: 201800604027 | E157: 广州市花都区卫计局 | F157: 68.25 | G157: 34.13 | H157: 77.30 | I157: 38.65 | J157: 72.78
A158: 155 | B158: 24550 | C158: （057、058、071、075）临床医师 | D158: 201800603712 | E158: 广州市花都区卫计局 | F158: 65.25 | G158: 32.63 | H158: 78.90 | I158: 39.45 | J158: 72.08
A159: 156 | B159: 24550 | C159: （057、058、071、075）临床医师 | D159: 201800604105 | E159: 广州市花都区卫计局 | F159: 66.00 | G159: 33.00 | H159: 77.10 | I159: 38.55 | J159: 71.55
A160: 157 | B160: 24550 | C160: （057、058、071、075）临床医师 | D160: 201800604134 | E160: 广州市花都区卫计局 | F160: 73.50 | G160: 36.75 | H160: 69.25 | I160: 34.63 | J160: 71.38
A161: 158 | B161: 24550 | C161: （057、058、071、075）临床医师 | D161: 201800603702 | E161: 广州市花都区卫计局 | F161: 66.75 | G161: 33.38 | H161: 75.20 | I161: 37.60 | J161: 70.98
A162: 159 | B162: 24550 | C162: （057、058、071、075）临床医师 | D162: 201800603811 | E162: 广州市花都区卫计局 | F162: 62.50 | G162: =ROUND(F162*0.5,2) -> 31.25 | H162: 72.80 | I162: 36.40 | J162: 67.65
A163: 160 | B163: 24550 | C163: （057、058、071、075）临床医师 | D163: 201800603719 | E163: 广州市花都区卫计局 | F163: 62.00 | G163: 31.00 | H163: 70.85 | I163: 35.43 | J163: 66.43
A164: 161 | B164: 24550 | C164: （057、058、071、075）临床医师 | D164: 201800603701 | E164: 广州市花都区卫计局 | F164: 67.00 | G164: 33.50 | H164: 62.50 | I164: 31.25 | J164: 64.75
A165: 162 | B165: 24551 | C165: （059、060、061）中医师 | D165: 201800503435 | E165: 广州市花都区卫计局 | F165: 79.00 | G165: 39.50 | H165: 71.70 | I165: 35.85 | J165: 75.35
A166: 163 | B166: 24551 | C166: （059、060、061）中医师 | D166: 201800503327 | E166: 广州市花都区卫计局 | F166: 74.75 | G166: 37.38 | H166: 75.20 | I166: 37.60 | J166: 74.98
A167: 164 | B167: 24551 | C167: （059、060、061）中医师 | D167: 201800503505 | E167: 广州市花都区卫计局 | F167: 74.00 | G167: 37.00 | H167: 72.10 | I167: 36.05 | J167: 73.05
A168: 165 | B168: 24551 | C168: （059、060、061）中医师 | D168: 201800503309 | E168: 广州市花都区卫计局 | F168: 75.75 | G168: 37.88 | H168: 70.00 | I168: 35.00 | J168: 72.88
A169: 166 | B169: 24551 | C169: （059、060、061）中医师 | D169: 201800503320 | E169: 广州市花都区卫计局 | F169: 76.25 | G169: 38.13 | H169: 69.30 | I169: 34.65 | J169: 72.78
A170: 167 | B170: 24551 | C170: （059、060、061）中医师 | D170: 201800503531 | E170: 广州市花都区卫计局 | F170: 71.75 | G170: 35.88 | H170: 72.85 | I170: 36.43 | J170: 72.31
A171: 168 | B171: 24551 | C171: （059、060、061）中医师 | D171: 201800503235 | E171: 广州市花都区卫计局 | F171: 73.00 | G171: 36.50 | H171: 70.10 | I171: 35.05 | J171: 71.55
A172: 169 | B172: 24551 | C172: （059、060、061）中医师 | D172: 201800503613 | E172: 广州市花都区卫计局 | F172: 73.75 | G172: 36.88 | H172: 69.15 | I172: 34.58 | J172: 71.46
A173: 170 | B173: 24551 | C173: （059、060、061）中医师 | D173: 201800503610 | E173: 广州市花都区卫计局 | F173: 65.00 | G173: 32.50 | H173: 76.00 | I173: 38.00 | J173: 70.50
A174: 171 | B174: 24551 | C174: （059、060、061）中医师 | D174: 201800503409 | E174: 广州市花都区卫计局 | F174: 70.00 | G174: 35.00 | H174: 69.30 | I174: 34.65 | J174: 69.65
A175: 172 | B175: 24551 | C175: （059、060、061）中医师 | D175: 201800503419 | E175: 广州市花都区卫计局 | F175: 69.50 | G175: 34.75 | H175: 68.00 | I175: 34.00 | J175: 68.75
A176: 173 | B176: 24551 | C176: （059、060、061）中医师 | D176: 201800503206 | E176: 广州市花都区卫计局 | F176: 68.75 | G176: 34.38 | H176: 67.45 | I176: 33.73 | J176: 68.11
A177: 174 | B177: 24551 | C177: （059、060、061）中医师 | D177: 201800503338 | E177: 广州市花都区卫计局 | F177: 68.50 | G177: 34.25 | H177: 67.40 | I177: 33.70 | J177: 67.95
A178: 175 | B178: 24551 | C178: （059、060、061）中医师 | D178: 201800503532 | E178: 广州市花都区卫计局 | F178: 65.00 | G178: 32.50 | H178: 66.00 | I178: 33.00 | J178: 65.50
A179: 176 | B179: 24551 | C179: （059、060、061）中医师 | D179: 201800503606 | E179: 广州市花都区卫计局 | F179: 73.25 | G179: 36.63 | H179: 缺考 | I179: 0.00 | J179: 36.63
A180: 177 | B180: 24551 | C180: （059、060、061）中医师 | D180: 201800503602 | E180: 广州市花都区卫计局 | F180: 73.00 | G180: 36.50 | H180: 缺考 | I180: 0.00 | J180: 36.50
A181: 178 | B181: 24552 | C181: （062、088）中医师 | D181: 201800503213 | E181: 广州市花都区卫计局 | F181: 72.25 | G181: 36.13 | H181: 83.45 | I181: =ROUND(H181*0.5,2) -> 41.73 | J181: 77.86
A182: 179 | B182: 24552 | C182: （062、088）中医师 | D182: 201800503234 | E182: 广州市花都区卫计局 | F182: 76.50 | G182: 38.25 | H182: 75.90 | I182: 37.95 | J182: 76.20
A183: 180 | B183: 24552 | C183: （062、088）中医师 | D183: 201800503616 | E183: 广州市花都区卫计局 | F183: 69.25 | G183: 34.63 | H183: 82.65 | I183: 41.33 | J183: 75.96
A184: 181 | B184: 24552 | C184: （062、088）中医师 | D184: 201800503215 | E184: 广州市花都区卫计局 | F184: 69.75 | G184: 34.88 | H184: 78.75 | I184: 39.38 | J184: 74.26
A185: 182 | B185: 24552 | C185: （062、088）中医师 | D185: 201800503214 | E185: 广州市花都区卫计局 | F185: 66.50 | G185: 33.25 | H185: 74.05 | I185: 37.03 | J185: 70.28
A186: 183 | B186: 24552 | C186: （062、088）中医师 | D186: 201800503216 | E186: 广州市花都区卫计局 | F186: 64.75 | G186: 32.38 | H186: 72.00 | I186: 36.00 | J186: 68.38
A187: 184 | B187: 24553 | C187: （063、064）公卫医师 | D187: 201800402802 | E187: 广州市花都区卫计局 | F187: 72.25 | G187: 36.13 | H187: 77.35 | I187: 38.68 | J187: 74.81
A188: 185 | B188: 24553 | C188: （063、064）公卫医师 | D188: 201800402519 | E188: 广州市花都区卫计局 | F188: 66.00 | G188: 33.00 | H188: 82.70 | I188: 41.35 | J188: 74.35
A189: 186 | B189: 24553 | C189: （063、064）公卫医师 | D189: 201800402701 | E189: 广州市花都区卫计局 | F189: 64.50 | G189: 32.25 | H189: 84.05 | I189: 42.03 | J189: 74.28
A190: 187 | B190: 24553 | C190: （063、064）公卫医师 | D190: 201800403131 | E190: 广州市花都区卫计局 | F190: 60.75 | G190: 30.38 | H190: 66.95 | I190: 33.48 | J190: 63.86
A191: 188 | B191: 24554 | C191: （065、076、098、100、109）医学影像医师 | D191: 201800900303 | E191: 广州市花都区卫计局 | F191: 79.00 | G191: 39.50 | H191: 73.35 | I191: 36.68 | J191: 76.18
A192: 189 | B192: 24554 | C192: （065、076、098、100、109）医学影像医师 | D192: 201800900323 | E192: 广州市花都区卫计局 | F192: 73.20 | G192: 36.60 | H192: 79.10 | I192: 39.55 | J192: 76.15
A193: 190 | B193: 24554 | C193: （065、076、098、100、109）医学影像医师 | D193: 201800900308 | E193: 广州市花都区卫计局 | F193: 76.50 | G193: 38.25 | H193: 72.30 | I193: 36.15 | J193: 74.40
A194: 191 | B194: 24554 | C194: （065、076、098、100、109）医学影像医师 | D194: 201800900301 | E194: 广州市花都区卫计局 | F194: 74.00 | G194: 37.00 | H194: 73.65 | I194: 36.83 | J194: 73.83
A195: 192 | B195: 24554 | C195: （065、076、098、100、109）医学影像医师 | D195: 201800900328 | E195: 广州市花都区卫计局 | F195: 77.30 | G195: 38.65 | H195: 65.40 | I195: 32.70 | J195: 71.35
A196: 193 | B196: 24554 | C196: （065、076、098、100、109）医学影像医师 | D196: 201800900327 | E196: 广州市花都区卫计局 | F196: 61.00 | G196: 30.50 | H196: 66.40 | I196: 33.20 | J196: =G196+I196 -> 63.70
A197: 194 | B197: 24554 | C197: （065、076、098、100、109）医学影像医师 | D197: 201800900325 | E197: 广州市花都区卫计局 | F197: 69.80 | G197: 34.90 | H197: 缺考 | I197: 0.00 | J197: 34.90
A198: 195 | B198: 24555 | C198: （066）中药师 | D198: 201800302301 | E198: 广州市花都区卫计局 | F198: 74.50 | G198: 37.25 | H198: 77.25 | I198: =ROUND(H198*0.5,2) -> 38.63 | J198: 75.88
A199: 196 | B199: 24555 | C199: （066）中药师 | D199: 201800302319 | E199: 广州市花都区卫计局 | F199: 74.75 | G199: 37.38 | H199: 74.40 | I199: 37.20 | J199: 74.58
A200: 197 | B200: 24556 | C200: （067、119）护士 | D200: 201800704927 | E200: 广州市花都区卫计局 | F200: 74.00 | G200: 37.00 | H200: 82.95 | I200: 41.48 | J200: 78.48
... 143 more rows
